{"text_format":"1","workbook":"xlsx","n_sheets":9,"sheets":["50","65","85","125 Женщины","Квадроциклы","CZ","125 М","250","ВЕТЕРАНЫ"],"not_rendered":{"charts":0,"images":2,"macros":0,"external_links":0,"defined_names":9,"comments":0,"pivot_tables":0},"unopened":[],"bounds":{"document_bytes":16777216,"sheet_cells":100000,"rows_first":2000,"rows_last":500,"rows_between":2000,"halvings":0,"cell_chars":16384,"cell_head_chars":4096},"cells_cut":0,"cells_raw":0,"read":"whole","date_system":"1900"}

{"sheet":"50","index":0,"n_rows":19,"n_cols":12,"rows_kept":19,"cut":false,"hidden":false,"merged":[[14,5,14,11],[17,5,17,11],[6,6,8,6],[6,7,6,8],[6,9,6,10],[6,11,8,11],[6,5,8,5],[6,0,8,0],[6,1,8,1],[6,2,8,2],[6,3,8,3],[6,4,8,4],[4,0,4,11],[0,0,0,11],[1,0,1,11],[2,0,2,11],[3,0,3,11]]}
["\n                                                                                                "]
[" Показательные выступления в рамках Первенства МФР по мотокроссу 2017 года."]
["ПРОТОКОЛ ЛИЧНОГО ЗАЧЕТА"]
["г. Ульяновск.                                                                                                                                                       19 - 21 мая 2017 г."]
["Класс 50 куб. см. (091 013 1 8 1 1 Н/мальчики)"]
[]
["Место","Ст. №","Фамилия,  Имя","Разряд","Город (край, район, область)","Команда","Мото","I-й заезд",null,"II-й заезд",null,"Сум Очк"]
[null,null,null,null,null,null,null,"мес","лич.","мес","лич."]
[null,null,null,null,null,null,null,"то","очк.","то","очк."]
[1,20,"Мальцев Емельян","б/р","г. Пенза","ЦДЮТТ \"Вираж +\" ДОСААФ","KTM",1,25,1,25,{"$f":"SUM(I10+K10)","v":50}]
[2,656,"Штоколов Платон","б/р","г. Ижевск, Удмуртская Республика","МАУ СШ по мотоспорту","KTM",2,22,2,22,{"$f":"SUM(I11+K11)","v":44}]
[3,585,"Дюкин Зариф","б/р","г. Ижевск, Удмуртская Республика","МАУ СШ по мотоспорту","KTM",3,20,3,20,{"$f":"SUM(I12+K12)","v":40}]
[4,98,"Телятников Игорь","б/р","г. Ижевск, Удмуртская Республика","МАУ СШ по мотоспорту","KTM",4,18,4,18,{"$f":"SUM(I13+K13)","v":36}]
[]
["Главный судья соревнований"]
["судья Первой категории:                                  Д. Е. Чикилев (г. Ульяновск; свидетельство МФР В 638)"]
[]
["Главный секретарь"]
["судья Всероссийской категории:                А. Ю. Иванов (г. Москва, свидетельство МФР А 105; FIM 11245)      "]

{"sheet":"65","index":1,"n_rows":27,"n_cols":12,"rows_kept":27,"cut":false,"hidden":false,"merged":[[25,5,25,11],[6,5,8,5],[6,6,8,6],[6,7,6,8],[6,9,6,10],[6,11,8,11],[22,5,22,11],[0,0,0,11],[1,0,1,11],[2,0,2,11],[3,0,3,11],[4,0,4,11],[6,0,8,0],[6,1,8,1],[6,2,8,2],[6,3,8,3],[6,4,8,4]]}
["\n                                                                                                "]
["Первенство МФР по мотокроссу 2017 года."]
["ПРОТОКОЛ ЛИЧНОГО ЗАЧЕТА"]
["г. Ульяновск.                                                                                                                                                      19 - 21 мая 2017 г."]
["Класс 65 см3. (091 0141 8 1 1 Н/юноши)."]
[]
["Место","Ст. №","Фамилия,  Имя","Разряд","Город (край, район, область)","Команда","Мото","I-й заезд",null,"II-й заезд",null,"Сум Очк"]
[null,null,null,null,null,null,null,"мес","лич.","мес","лич."]
[null,null,null,null,null,null,null,"то","очк.","то","очк."]
[1,500,"Свистунов Никита","III","г. Пенза","ОО МФПО (СК \"Сура\")","KTM",1,25,1,25,{"$f":"SUM(I10+K10)","v":50}]
[2,11,"Нарижных Никита","б/р","г. Барыш, Ульяновская область","лично","KTM",2,22,2,22,44]
[3,529,"Иванков Егор","б/р","г. Вятские Поляны, Удмуртская Республика","лично","KTM",4,18,3,20,38]
[4,585,"Байкузин Богдан","б/р","г. Ижевск, Удмуртская Республика ","МАУ СШ по мотоспорту","KTM",5,16,4,18,34]
[5,50,"Гордеев Даниил","III","г. Пенза","ОО МФПО (СК \"Сура\")","KTM",3,20,10,11,31]
[6,36,"Батин Ярослав","б/р","г. Саратов","Мото клуб \"Ястреб\"","KTM",9,12,5,16,28]
[7,3,"Гордеев Артем","б/р","г. Пенза","ОО МФПО (СК \"Сура\")","KTM",8,13,6,15,28]
[8,35,"Калабин Илья","б/р","г. Пенза","ЦДЮТТ \"Вираж+\" ДОСААФ","KTM",6,15,8,13,28]
[9,864,"Александров Демид","б/р","г. Ульяновск","лично","KTM",7,14,7,14,28]
[10,119,"Федоров Данил","б/р","г. Ижевск, Удмуртская Республика ","МАУ СШ по мотоспорту","Kaw",10,11,9,12,23]
[11,34,"Денисов Даниил","б/р","г. Пенза","ЦДЮТТ \"Вираж+\" ДОСААФ","KTM",11,10,11,10,20]
[12,222,"Колосков Илья","б/р","г. Сызрань, Самарская область","СТК \"Вираж\"","KTM",12,9,12,9,18]
[]
["Главный судья соревнований"]
["судья Первой категории:                                  Д. Е. Чикилев (г. Ульяновск; свидетельство МФР В 638)"]
[]
["Главный секретарь"]
["судья Всероссийской категории:                А. Ю. Иванов (г. Москва, свидетельство МФР А 105; FIM 11245)      "]

{"sheet":"85","index":2,"n_rows":19,"n_cols":12,"rows_kept":19,"cut":false,"hidden":false,"merged":[[17,5,17,11],[6,5,8,5],[6,6,8,6],[6,7,6,8],[6,9,6,10],[6,11,8,11],[14,5,14,11],[0,0,0,11],[1,0,1,11],[2,0,2,11],[3,0,3,11],[4,0,4,11],[6,0,8,0],[6,1,8,1],[6,2,8,2],[6,3,8,3],[6,4,8,4]]}
["\n                                                                                                "]
["Первенство МФР по мотокроссу 2017 года."]
["ПРОТОКОЛ ЛИЧНОГО ЗАЧЕТА"]
["г. Ульяновск.                                                                                                                                                     19 - 21 мая 2017 г."]
["Класс 85 см3. (091 0151 8 1 1 Н/юноши)."]
[]
["Место","Ст. №","Фамилия,  Имя","Разряд","Город (край, район, область)","Команда","Мото","I-й заезд",null,"II-й заезд",null,"Сум Очк"]
[null,null,null,null,null,null,null,"мес","лич.","мес","лич."]
[null,null,null,null,null,null,null,"то","очк.","то","очк."]
[1,791,"Лейман Кирилл","I","г. Пенза","ОО \"МФПО\" (СК \"Сура\")","KTM",1,25,1,25,{"$f":"SUM(I10+K10)","v":50}]
[2,53,"Кошелев Артем","I","г. Пенза","ОО \"МФПО\" (СК \"Сура\")","KTM",2,22,2,22,{"$f":"SUM(I11+K11)","v":44}]
[3,762,"Димов Алексей","III","г. Ижевск, Удмуртская Республика","МАУ СШ по мотоспорту","Suz",3,20,3,20,{"$f":"SUM(I12+K12)","v":40}]
[4,211,"Чуянов Евгений","б/р","г. Сызрань, Самарская область","СТК \"Вираж\"","KTM",4,18,4,18,{"$f":"SUM(I13+K13)","v":36}]
[]
["Главный судья соревнований"]
["судья Первой категории:                                  Д. Е. Чикилев (г. Ульяновск; свидетельство МФР В 638)"]
[]
["Главный секретарь"]
["судья Всероссийской категории:                А. Ю. Иванов (г. Москва, свидетельство МФР А 105; FIM 11245)      "]

{"sheet":"125 Женщины","index":3,"n_rows":18,"n_cols":12,"rows_kept":18,"cut":false,"hidden":false,"merged":[[6,0,8,0],[6,1,8,1],[6,2,8,2],[6,3,8,3],[6,4,8,4],[0,0,0,11],[1,0,1,11],[2,0,2,11],[3,0,3,11],[4,0,4,11],[16,5,16,11],[6,5,8,5],[6,6,8,6],[6,7,6,8],[6,9,6,10],[6,11,8,11],[13,5,13,11]]}
["\n                                                                                                "]
["Чемпионат МФР по мотокроссу 2017 года."]
["ПРОТОКОЛ ЛИЧНОГО ЗАЧЕТА"]
["г. Ульяновск.                                                                                                                                            19 - 21 мая 2017 г."]
["Класс 125 куб. см. (091 016 1 8 1 1ГН/женщины)"]
[]
["Место","Ст. №","Фамилия,  Имя","Разряд","Город (край, район, область)","Команда","Мото","I-й заезд",null,"II-й заезд",null,"Сум Очк"]
[null,null,null,null,null,null,null,"мес","лич.","мес","лич."]
[null,null,null,null,null,null,null,"то","очк.","то","очк."]
[1,210,"Тюфякова Екатерина","б/р","г. Казань, Республика Татарстан","СТК \"Барсы\"","Yam",1,25,1,25,{"$f":"SUM(I10+K10)","v":50}]
[2,66,"Калугина Евгения","II","г. Екатеринбург","лично","Yam",2,22,2,22,{"$f":"SUM(I11+K11)","v":44}]
[3,40,"Сандихаева Анастасия","кмс","г. Самара","\"Мотогон 63\"","KTM",3,20,3,20,{"$f":"SUM(I12+K12)","v":40}]
[]
["Главный судья соревнований"]
["судья Первой категории:                                  Д. Е. Чикилев (г. Ульяновск; свидетельство МФР В 638)"]
[]
["Главный секретарь"]
["судья Всероссийской категории:                А. Ю. Иванов (г. Москва, свидетельство МФР А 105; FIM 11245)      "]

{"sheet":"Квадроциклы","index":4,"n_rows":21,"n_cols":12,"rows_kept":21,"cut":false,"hidden":false,"merged":[[6,0,8,0],[6,1,8,1],[6,2,8,2],[6,3,8,3],[6,4,8,4],[0,0,0,11],[1,0,1,11],[2,0,2,11],[3,0,3,11],[4,0,4,11],[19,5,19,11],[6,5,8,5],[6,6,8,6],[6,7,6,8],[6,9,6,10],[6,11,8,11],[16,5,16,11]]}
["\n                                                                                                "]
["Чемпионат МФР по мотокроссу 2017 года."]
["ПРОТОКОЛ ЛИЧНОГО ЗАЧЕТА"]
["г. Ульяновск.                                                                                                                                                       19 - 21 мая 2017 г."]
["Класс \"Квадроциклы\"   (091 0361811Л/мужчины)"]
[]
["Место","Ст. №","Фамилия,  Имя","Разряд","Город (край, район, область)","Команда","Мото","I-й заезд",null,"II-й заезд",null,"Сум Очк"]
[null,null,null,null,null,null,null,"мес","лич.","мес","лич."]
[null,null,null,null,null,null,null,"то","очк.","то","очк."]
[1,400,"Калачиков Юрий","I","г. Волгоград","лично","Yam",1,25,1,25,{"$f":"SUM(I10+K10)","v":50}]
[2,26,"Назаров Виталий","б/р","г. Ульяновск","лично","Yam",2,22,3,20,42]
[3,9,"Скрыпников Андрей","II","г. Волгоград","лично","Yam",4,18,2,22,40]
[4,96,"Никонов Юрий","б/р","г. Ульяновск","лично","Yam",3,20,4,18,38]
[5,24,"Никоненко Данила","б/р","г. Ульяновск","\"УЛЬЯНОВСК\"","Yam",5,16,6,15,31]
[6,1,"Хныгин Александр","б/р","г. Тольятти, самарская область","лично","Yam","сх",0,5,16,16]
[]
["Главный судья соревнований"]
["судья Первой категории:                                  Д. Е. Чикилев (г. Ульяновск; свидетельство МФР В 638)"]
[]
["Главный секретарь"]
["судья Всероссийской категории:                А. Ю. Иванов (г. Москва, свидетельство МФР А 105; FIM 11245)      "]

{"sheet":"CZ","index":5,"n_rows":26,"n_cols":12,"rows_kept":26,"cut":false,"hidden":false,"merged":[[6,0,8,0],[6,1,8,1],[6,2,8,2],[6,3,8,3],[6,4,8,4],[0,0,0,11],[1,0,1,11],[2,0,2,11],[3,0,3,11],[4,0,4,11],[24,5,24,11],[6,5,8,5],[6,6,8,6],[6,7,6,8],[6,9,6,10],[6,11,8,11],[21,5,21,11]]}
["\n                                                                                                "]
[" Чемпионат МФР по мотокроссу 2017 года."]
["ПРОТОКОЛ ЛИЧНОГО ЗАЧЕТА"]
["г. Ульяновск.                                                                                                                                                       19 - 21 мая 2017 г."]
["Класс \"CZ\" (мужчины)"]
[]
["Место","Ст. №","Фамилия,  Имя","Разряд","Город (край, район, область)","Команда","Мото","I-й заезд",null,"II-й заезд",null,"Сум Очк"]
[null,null,null,null,null,null,null,"мес","лич.","мес","лич."]
[null,null,null,null,null,null,null,"то","очк.","то","очк."]
[1,4,"Мустафин Наиль","кмс","г. Самара","\"Мотогон 63\"","CZ",2,22,1,25,{"$f":"SUM(I10+K10)","v":47}]
[2,11,"Кабанов Дмитрий","II","г. Ульяновск","\"УЛЬЯНОВСК\"","CZ",1,25,2,22,47]
[3,17,"Федотов Валерий","б/р","г. Пенза","\"ПЕНЗА\"","CZ",3,20,3,20,40]
[4,30,"Воронков Владимир","б/р","г. Ульяновск","\"УЛЬЯНОВСК\"","CZ",6,15,5,16,31]
[5,75,"Александров Николай","б/р","г. Ульяновск","лично","CZ",4,18,10,11,29]
[6,43,"Гарифуллин Марат","б/р","г. Ульяновск","лично","CZ",8,13,7,14,27]
[7,34,"Мизюркин Василий","б/р","г. Пенза","\"ПЕНЗА\"","CZ",7,14,8,13,27]
[8,1,"Васильев Дмитрий","б/р","г. Ульяновск","лично","CZ",9,12,9,12,24]
[9,110,"Посадский Дмитрий","кмс","г. Кузнецк, Пензенская область","\"Фонд поддержки мотоспорта\"","CZ","н/с",0,4,18,18]
[10,54,"Абросимов Антон","б/р","г. Ульяновск","УФМС","CZ",5,16,"н/с",0,16]
[11,7,"Фионов Анатолий","б/р","г. Ульяновск","\"УЛЬЯНОВСК\"","CZ","сх",0,6,15,15]
[]
["Главный судья соревнований"]
["судья Первой категории:                                  Д. Е. Чикилев (г. Ульяновск; свидетельство МФР В 638)"]
[]
["Главный секретарь"]
["судья Всероссийской категории:                А. Ю. Иванов (г. Москва, свидетельство МФР А 105; FIM 11245)      "]

{"sheet":"125 М","index":6,"n_rows":22,"n_cols":12,"rows_kept":22,"cut":false,"hidden":false,"merged":[[6,0,8,0],[6,1,8,1],[6,2,8,2],[6,3,8,3],[6,4,8,4],[0,0,0,11],[1,0,1,11],[2,0,2,11],[3,0,3,11],[4,0,4,11],[20,5,20,11],[6,5,8,5],[6,6,8,6],[6,7,6,8],[6,9,6,10],[6,11,8,11],[17,5,17,11]]}
["\n                                                                                                "]
["Чемпионат МФР по мотокроссу 2017 года."]
["ПРОТОКОЛ ЛИЧНОГО ЗАЧЕТА"]
["г. Ульяновск.                                                                                                                                                      19 - 21 мая 2017 г."]
["Класс 125 см3. (мужчины)."]
[]
["Место","Ст. №","Фамилия,  Имя","Разряд","Город (край, район, область)","Команда","Мото","I-й заезд",null,"II-й заезд",null,"Сум Очк"]
[null,null,null,null,null,null,null,"мес","лич.","мес","лич."]
[null,null,null,null,null,null,null,"то","очк.","то","очк."]
[1,500,"Федоров Александр","I","г. Москва","Сборная ДОСААФ России СШОР МО","KTM",1,25,1,25,{"$f":"SUM(I10+K10)","v":50}]
[2,46,"Скоробогатов Егор","III","г. Москва","Сборная ДОСААФ России СШОР МО","Husq",2,22,2,22,44]
[3,491,"Биктеев Игорь","I","г. Казань, Республика Татарстан","лично","KTM",3,20,3,20,40]
[4,505,"Гришинов Дмитрий","I","г. Пенза","ЦДЮТТ \"Вираж+\" ДОСААФ","Yam",5,16,4,18,34]
[5,557,"Гришин Дмитрий","III","г. Пенза","ОО МФПО (СК \"Сура\")","KTM",4,18,5,16,34]
[6,210,"Тюфякова Екатерина ","б/р","г. Казань, Республика Татарстан","СТК \"Барсы\"","Yam",6,15,6,15,30]
[7,123,"Шишкин Евгений","б/р","г. Энгельс, Саратовская область","МК \"Ястреб\"","Hon",7,14,7,14,28]
[]
["Главный судья соревнований"]
["судья Первой категории:                                  Д. Е. Чикилев (г. Ульяновск; свидетельство МФР В 638)"]
[]
["Главный секретарь"]
["судья Всероссийской категории:                А. Ю. Иванов (г. Москва, свидетельство МФР А 105; FIM 11245)      "]

{"sheet":"250","index":7,"n_rows":25,"n_cols":12,"rows_kept":25,"cut":false,"hidden":false,"merged":[[6,0,8,0],[6,1,8,1],[6,2,8,2],[6,3,8,3],[6,4,8,4],[0,0,0,11],[1,0,1,11],[2,0,2,11],[3,0,3,11],[4,0,4,11],[23,5,23,11],[6,5,8,5],[6,6,8,6],[6,7,6,8],[6,9,6,10],[6,11,8,11],[20,5,20,11]]}
["\n                                                                                                "]
["Чемпионат МФР по мотокроссу 2017 года."]
["ПРОТОКОЛ ЛИЧНОГО ЗАЧЕТА"]
["г. Ульяновск.                                                                                                                                                      19 - 21 мая 2017 г."]
["Класс 250 см3. (мужчины)."]
[]
["Место","Ст. №","Фамилия,  Имя","Разряд","Город (край, район, область)","Команда","Мото","I-й заезд",null,"II-й заезд",null,"Сум Очк"]
[null,null,null,null,null,null,null,"мес","лич.","мес","лич."]
[null,null,null,null,null,null,null,"то","очк.","то","очк."]
[1,700,"Рыжих Илья","мс","г. Пенза","ОО МФПО (СК \"Сура\")","Yam",2,22,1,25,{"$f":"SUM(I10+K10)","v":47}]
[2,51,"Дергунов Денис","кмс","г. Пенза","ОО МФПО (СК \"Сура\")","Yam",3,20,2,22,42]
[3,535,"Брюхов Михаил","б/р","г. Ижевск, Удмуртская Республика","МАУ СШ по мотоспорту","Husq",4,18,3,20,38]
[4,767,"Винтаев Дмитрий","кмс","г. Самара","\"Самарский областной Авто Мото клуб\"","Husq",5,16,4,18,34]
[5,298,"Бушев Максим","кмс","г. Дзержинск, Нижегородская область","ООО \"СВАН\"","Yam",6,15,5,16,31]
[6,197,"Игонин Федор","б/р","г. Сызрань, Самарская область","лично","Suz",7,14,6,15,29]
[7,969,"Жучков Виктор","кмс","г. Пенза","\"Full Gas\"","Kaw",9,12,7,14,26]
[8,808,"Бородин Алексей","I","г. Саратов","лично","Yam",8,13,8,13,26]
[9,5,"Уколов Александр","мс","г. Пенза","ОО МФПО (СК \"Сура\")","Yam",1,25,"н/с",0,25]
[10,73,"Симонов Евгений","б/р","г. Ульяновск","лично","Hon",10,11,9,12,23]
[]
["Главный судья соревнований"]
["судья Первой категории:                                  Д. Е. Чикилев (г. Ульяновск; свидетельство МФР В 638)"]
[]
["Главный секретарь"]
["судья Всероссийской категории:                А. Ю. Иванов (г. Москва, свидетельство МФР А 105; FIM 11245)      "]

{"sheet":"ВЕТЕРАНЫ","index":8,"n_rows":21,"n_cols":12,"rows_kept":21,"cut":false,"hidden":false,"merged":[[6,0,8,0],[6,1,8,1],[6,2,8,2],[6,3,8,3],[6,4,8,4],[0,0,0,11],[1,0,1,11],[2,0,2,11],[3,0,3,11],[4,0,4,11],[19,5,19,11],[6,5,8,5],[6,6,8,6],[6,7,6,8],[6,9,6,10],[6,11,8,11],[16,5,16,11]]}
["\n                                                                                                "]
["Чемпионат МФР по мотокроссу 2017 года."]
["ПРОТОКОЛ ЛИЧНОГО ЗАЧЕТА"]
["г. Ульяновск.                                                                                                                                                      19 - 21 мая 2017 г."]
["Класс \"ВЕТЕРАНЫ\" (мужчины)."]
[]
["Место","Ст. №","Фамилия,  Имя","Разряд","Город (край, район, область)","Команда","Мото","I-й заезд",null,"II-й заезд",null,"Сум Очк"]
[null,null,null,null,null,null,null,"мес","лич.","мес","лич."]
[null,null,null,null,null,null,null,"то","очк.","то","очк."]
[1,43,"Воробьев Алексей","б/р","г. Киров","лично","Hon",1,25,1,25,{"$f":"SUM(I10+K10)","v":50}]
[2,171,"Белов Сергей","мс","г. Ульяновск","лично","Yam",2,22,2,22,44]
[3,747,"Галеев Рамиль","III","г. Казань, Республика Татарстан","лично","KTM",4,18,3,20,38]
[4,858,"Аникьев Геннадий","I","г. Ульяновск","лично","Kaw",3,20,4,18,38]
[5,514,"Сергеев Андрей","б/р","г. Ульяновск","лично","Kaw",5,16,5,16,32]
[6,225,"Шумилин Валерий","кмс","г. Пенза","\"Вираж +\"","Kaw",6,15,6,15,30]
[]
["Главный судья соревнований"]
["судья Первой категории:                                  Д. Е. Чикилев (г. Ульяновск; свидетельство МФР В 638)"]
[]
["Главный секретарь"]
["судья Всероссийской категории:                А. Ю. Иванов (г. Москва, свидетельство МФР А 105; FIM 11245)      "]